bitfinex/quotes_SOLUSD_20240711
["timestamp","ask_amount","ask_price","bid_price","bid_amount"]
[1720708266053,7.1002,140.84,140.79,8.52249629]
[1720708266360,7.0998,140.85,140.8,7.1022]
[1720708266649,27.17,140.86,140.8,1.42007417]
[1720708266831,7.1011,140.83,140.8,1.42007417]
[1720708267029,7.1004,140.84,140.8,1.42007417]
[1720708267349,7.1008,140.83,140.8,1.42007417]
[1720708267562,7.1012,140.82,140.8,1.42007417]
[1720708267878,26.52599144,140.88,140.8,1.42007417]
[1720708268165,30.69559144,140.88,140.81,15.1197]
[1720708268362,7.0991,140.87,140.82,26.2736351]
[1720708268575,7.0991,140.87,140.83,1.41963428]
[1720708269068,7.0983,140.88,140.83,8.52033428]
[1720708269444,7.0988,140.87,140.83,1.41963428]
[1720708269643,7.0993,140.86,140.83,1.41963428]
[1720708270267,7.0989,140.87,140.83,1.41963428]
[1720708271063,27.17,140.9,140.84,17.7504]
[1720708271280,7.098,140.89,140.85,1.41960177]
[1720708271476,7.098,140.89,140.86,1.41960377]
[1720708271775,7.0987,140.87,140.85,1.41960372]
[1720708271945,7.0992,140.86,140.82,6.0514]
[1720708272368,7.0989,140.87,140.82,13.1526]
[1720708272551,7.0992,140.86,140.82,6.0514]
[1720708272755,7.0988,140.87,140.82,13.1525]
[1720708272960,7.0995,140.86,140.82,6.0514]
[1720708273351,7.0988,140.87,140.82,13.1525]
[1720708273558,44.9133,140.9,140.82,6.0514]
[1720708273767,7.0993,140.86,140.82,6.0514]
[1720708273951,45.0,140.89,140.82,13.1522]
[1720708274347,45.0,140.89,140.83,0.61149634]
[1720708274667,7.099,140.87,140.83,0.61149634]
[1720708274872,7.099,140.87,140.83,7.71219634]
[1720708275068,7.099,140.87,140.84,1.4198357]
[1720708275274,3.45401365,140.91,140.84,8.5200357]
[1720708275872,7.0967,140.91,140.86,7.0988]
[1720708276052,7.0972,140.9,140.87,1.41947067]
[1720708276559,7.0978,140.89,140.86,1.41947071]
[1720708276761,7.0982,140.88,140.86,1.41947071]
[1720708277058,44.9134,140.9,140.82,23.8033]
[1720708277258,7.0989,140.87,140.82,30.9044]
[1720708277466,7.0983,140.88,140.83,7.1007]
[1720708277648,7.0987,140.87,140.82,30.9044]
[1720708278883,27.17,140.88,140.82,6.0514]
[1720708279054,7.0993,140.86,140.83,1.41996325]
[1720708279254,7.0988,140.87,140.83,1.41996325]
[1720708280049,7.0993,140.86,140.83,1.41996325]
[1720708280377,35.4791,140.93,140.83,19.17146325]
[1720708280378,27.17,140.91,140.83,19.17146325]
[1720708280673,7.097,140.91,140.86,7.0991]
[1720708280850,7.0971,140.91,140.87,1.41950625]
[1720708281046,7.0973,140.9,140.87,1.41950625]
[1720708281252,44.91,140.93,140.86,8.51850262]
[1720708281253,7.097,140.91,140.86,8.51850262]
[1720708281660,7.0972,140.9,140.86,1.41950262]
[1720708282076,27.17,140.91,140.86,1.41950262]
[1720708282270,7.0975,140.9,140.86,1.41950262]
[1720708282661,7.0978,140.89,140.86,1.41950262]
[1720708283084,7.0978,140.89,140.85,1.41950262]
[1720708283453,7.0978,140.89,140.85,1.41964766]
[1720708283669,7.0973,140.9,140.86,1.41954687]
[1720708283872,7.0972,140.9,140.86,8.51854687]
[1720708284077,27.17,140.92,140.85,1.41953256]
[1720708284285,7.0974,140.9,140.85,8.51893256]
[1720708284585,7.0974,140.9,140.86,1.41943178]
[1720708284771,27.17,140.92,140.86,1.41943178]
[1720708284772,27.17,140.92,140.86,19.16733178]
[1720708285157,34.2665,140.92,140.87,7.0984]
[1720708285379,7.0965,140.92,140.88,1.41923028]
[1720708285561,17.7363,140.96,140.88,19.16433028]
[1720708285761,7.0953,140.94,140.89,7.0974]
[1720708285965,7.0959,140.93,140.9,1.41917635]
[1720708286465,3.49068714,140.96,140.9,1.41917635]
[1720708286659,7.0953,140.94,140.9,1.41917635]
[1720708286860,7.0958,140.93,140.9,1.41917635]
[1720708287072,7.0958,140.93,140.89,1.41924775]
[1720708287268,7.0962,140.92,140.9,1.41914702]
[1720708287575,27.17,140.96,140.9,1.41914702]
[1720708287778,7.0955,140.94,140.9,1.41914702]
[1720708288279,7.0952,140.94,140.9,1.41914702]
[1720708288486,7.0957,140.93,140.9,1.41914702]
[1720708288669,7.0953,140.94,140.89,8.51674702]
[1720708288867,7.0957,140.93,140.9,1.41914701]
[1720708289848,7.0953,140.94,140.89,1.41914701]
[1720708290054,7.0947,140.95,140.9,26.25874628]
[1720708290376,27.17,140.96,140.9,26.25874628]
[1720708290377,7.0937,140.97,140.93,16.0027]
[1720708290682,27.17,141.01,140.94,1.41864354]
[1720708290683,7.0932,140.98,140.94,1.41864354]
[1720708291270,7.0937,140.97,140.94,1.41864354]
[1720708291575,7.0942,140.96,140.94,1.41864354]
[1720708291967,7.0938,140.97,140.94,1.41864354]
[1720708292288,27.17,140.99,140.92,17.7397]
[1720708292464,7.0945,140.96,140.92,17.7397]
[1720708292651,7.0939,140.97,140.92,24.8359]
[1720708292976,7.0932,140.98,140.93,7.0955]
[1720708293181,27.17,141.0,140.92,17.7397]
[1720708293362,7.0942,140.96,140.92,17.7397]
[1720708293692,7.0938,140.97,140.92,24.8358]
[1720708293984,27.17,141.0,140.94,7.0951]
[1720708294151,7.0931,140.99,140.93,7.0956]
[1720708294357,7.0932,140.98,140.93,7.0956]
[1720708294563,27.17,141.0,140.93,7.0956]
[1720708294777,7.0928,140.99,140.93,7.0956]
[1720708294972,7.0933,140.98,140.93,7.0956]
[1720708295285,7.0933,140.98,140.94,0.82872606]
[1720708295683,7.0928,140.99,140.94,7.92392606]
[1720708295871,7.0935,140.98,140.94,0.82872606]
[1720708296383,7.0928,140.99,140.94,0.82872606]
[1720708296587,7.0939,140.97,140.94,0.82872606]
[1720708296784,7.0942,140.96,140.93,0.83187319]
[1720708297262,7.0938,140.97,140.93,0.83187319]
[1720708297460,27.17,141.0,140.93,0.83187319]
[1720708297778,7.095,140.95,140.91,15.2337]
[1720708297972,7.0952,140.94,140.91,15.2337]
[1720708298181,27.17,140.97,140.91,15.2337]
[1720708298182,7.0948,140.95,140.91,15.2337]
[1720708299085,7.0943,140.96,140.91,22.3303]
[1720708299274,7.0947,140.95,140.91,15.2337]
[1720708299585,27.17,140.97,140.91,15.2337]
[1720708299774,7.0959,140.93,140.88,13.6261]
[1720708299960,7.0953,140.94,140.89,7.0976]
[1720708300166,7.0948,140.95,140.9,7.0968]
[1720708300368,34.2648,140.95,140.9,7.0968]
[1720708300989,7.0952,140.94,140.89,7.0975]
[1720708301293,0.17,140.99,140.88,24.2732]
[1720708301294,34.264,140.97,140.92,7.0958]
[1720708301494,7.0942,140.96,140.92,7.0958]
[1720708301666,17.7301,141.01,140.93,22.6412]
[1720708301865,7.0928,140.99,140.95,7.0947]
[1720708302076,7.0936,140.98,140.93,22.6412]
[1720708302686,7.0932,140.98,140.93,22.6412]
[1720708303185,27.17,141.0,140.93,22.6412]
[1720708303375,7.0933,140.98,140.93,22.6412]
[1720708304089,7.0929,140.99,140.94,7.0951]
[1720708304395,34.2624,141.0,140.95,7.0946]
[1720708304568,27.17,141.0,140.93,33.2847]
[1720708304965,7.0927,140.99,140.93,33.2847]
[1720708305482,30.65864456,141.02,140.95,7.0947]
[1720708305670,17.7265,141.04,140.95,7.0947]
[1720708305985,7.0923,141.0,140.95,7.0947]
[1720708307172,44.8984,141.02,140.94,6.1227]
[1720708307374,27.17,141.0,140.94,6.1227]
[1720708307582,7.0935,140.98,140.94,6.1227]
[1720708308091,27.17,141.0,140.96,7.0937]
[1720708308273,27.17,141.02,140.95,17.7364]
[1720708308480,7.0922,141.0,140.95,24.8306]
[1720708308791,7.0918,141.01,140.96,7.0938]
[1720708310381,7.0911,141.03,140.98,7.0931]
[1720708310585,21.14604502,141.04,140.95,0.17]
[1720708310820,7.0927,140.99,140.95,7.0946]
[1720708310979,3.42014502,141.04,140.96,17.7346]
[1720708311181,7.0917,141.01,140.97,7.0935]
[1720708311402,27.17,141.03,140.96,17.7346]
[1720708311691,7.0922,141.0,140.96,17.7346]
[1720708311901,7.0935,140.98,140.94,6.1227]
[1720708312197,7.0928,140.99,140.94,13.2177]
[1720708312382,27.17,141.0,140.94,6.1227]
[1720708312571,7.0933,140.98,140.94,6.1227]
[1720708312777,27.17,141.0,140.94,6.1227]
[1720708313167,7.0934,140.98,140.94,6.1227]
[1720708313393,27.17,141.0,140.94,6.1227]
[1720708313698,7.0932,140.98,140.94,6.1227]
[1720708314081,7.0932,140.98,140.94,13.2178]
[1720708314474,7.0929,140.99,140.94,13.2178]
[1720708314887,7.0932,140.98,140.94,6.1227]
[1720708315093,17.7318,140.99,140.93,15.5457]
[1720708315297,7.094,140.97,140.93,16.96403311]
[1720708315492,7.0944,140.96,140.93,16.96403311]
[1720708316088,7.0948,140.95,140.93,15.5457]
[1720708316292,7.0957,140.93,140.91,6.2889]
[1720708316681,7.0957,140.93,140.89,34.2414]
[1720708317106,7.0967,140.91,140.89,16.4977]
[1720708317476,7.0964,140.92,140.89,16.4977]
[1720708317677,34.2664,140.92,140.89,16.4977]
[1720708317877,7.0967,140.91,140.89,16.4977]
[1720708319487,7.0968,140.91,140.89,16.4977]
[1720708319895,34.2662,140.92,140.89,16.4977]
[1720708320090,27.17,140.92,140.87,8.0760694]
[1720708320604,34.2664,140.92,140.87,15.1744694]
[1720708320777,27.17,140.92,140.88,7.0982]
[1720708321101,27.17,140.92,140.87,13.7553]
[1720708321102,7.0963,140.92,140.87,13.7553]
[1720708321679,27.17,140.93,140.88,7.0982]
[1720708321680,34.2658,140.93,140.88,7.0982]
[1720708321883,27.17,140.93,140.87,6.6567]
[1720708322096,7.0954,140.94,140.89,7.0973]
[1720708322396,27.17,140.95,140.88,17.7452]
[1720708322603,27.17,140.93,140.87,6.6567]
[1720708322991,7.0976,140.9,140.87,6.6567]
[1720708323490,7.0969,140.91,140.87,6.6567]
[1720708323685,34.2669,140.91,140.87,6.6567]
[1720708324005,34.2669,140.91,140.88,0.45438162]
[1720708324006,27.17,140.91,140.88,0.45438162]
[1720708324203,7.0962,140.92,140.88,0.45438162]
[1720708324389,7.0973,140.9,140.88,0.45438162]
[1720708324711,7.0977,140.89,140.87,6.6567]
[1720708324875,35.4779,140.94,140.86,15.4586]
[1720708325208,7.0973,140.9,140.87,0.54510555]
[1720708325421,34.2668,140.91,140.87,0.54510555]
[1720708325620,27.17,140.91,140.87,0.54510555]
[1720708325914,27.17,140.93,140.87,0.54510555]
[1720708326092,27.17,140.91,140.86,16.00370555]
[1720708326289,7.098,140.89,140.86,16.00370555]
[1720708326477,7.0972,140.9,140.86,16.00370555]
[1720708327077,27.17,140.91,140.86,40.85020555]
[1720708327304,27.17,140.91,140.87,7.0983]
[1720708327496,34.2668,140.91,140.86,40.3051]
[1720708327684,7.0979,140.89,140.86,15.4586]
[1720708328080,7.0984,140.88,140.86,15.4586]
[1720708328299,7.0987,140.87,140.83,6.3736]
[1720708328484,34.2678,140.89,140.84,7.0999]
[1720708328888,34.2671,140.91,140.84,17.75]
[1720708329208,27.17,140.91,140.84,17.75]
[1720708329400,34.2667,140.91,140.86,7.0991]
[1720708329808,34.2667,140.91,140.86,24.8467]
[1720708329809,7.0967,140.91,140.86,24.8467]
[1720708329995,7.0966,140.92,140.86,17.7476]
[1720708330711,13.57,140.88,140.87,7.0986]
[1720708330912,13.57,140.88,140.86,24.8466]
[1720708331085,3.38894184,140.95,140.86,17.7476]
[1720708331086,13.57,140.87,140.86,17.7476]
[1720708331796,13.57,140.87,140.86,24.8468]
[1720708331989,13.57,140.87,140.84,7.0998]
[1720708332189,13.57,140.86,140.84,7.1]
[1720708332798,7.0977,140.89,140.83,24.2948]
[1720708332799,13.57,140.85,140.83,6.3736]
[1720708333111,13.57,140.84,140.83,6.3736]
[1720708333814,13.57,140.84,140.83,13.4743]
[1720708334199,13.57,140.84,140.83,6.3736]
[1720708334584,7.0992,140.86,140.83,6.3736]
[1720708334988,34.2689,140.87,140.83,6.3736]
[1720708335185,34.2689,140.87,140.83,13.4743]
[1720708335404,27.17,140.87,140.83,13.4743]
[1720708335917,27.17,140.87,140.83,6.3736]
[1720708336087,34.2691,140.87,140.83,6.3736]
[1720708337299,7.0993,140.86,140.83,6.3736]
[1720708337508,7.0993,140.86,140.82,16.6329]
[1720708337707,7.0993,140.86,140.82,23.7341]
[1720708337883,27.17,140.87,140.82,23.7341]
[1720708338208,7.0978,140.89,140.84,7.1002]
[1720708338385,7.0964,140.92,140.86,6.2678]
[1720708338589,27.17,140.93,140.86,6.2678]
[1720708338794,27.17,140.93,140.88,7.0982]
[1720708338795,34.2659,140.93,140.88,7.0982]
[1720708338992,7.097,140.91,140.86,6.2678]
[1720708339304,34.267,140.91,140.87,1.41943943]
[1720708339598,34.2667,140.91,140.87,8.51773943]
[1720708339807,34.2667,140.91,140.87,1.41943943]
[1720708340192,27.17,140.91,140.86,6.2678]
[1720708340393,7.0979,140.89,140.84,7.0999]
[1720708340588,7.0983,140.88,140.85,1.41921033]
[1720708340793,7.0983,140.88,140.83,24.8516]
[1720708341010,27.17,140.89,140.83,17.751]
[1720708341215,27.17,140.91,140.83,17.751]
[1720708341413,7.098,140.89,140.84,8.09629817]
[1720708341605,3.43581219,140.94,140.85,0.17]
[1720708341805,34.2666,140.92,140.87,24.8448]
[1720708342121,7.0968,140.91,140.88,0.99574464]
[1720708342615,27.17,140.9,140.84,17.7496]
[1720708342820,7.0986,140.88,140.81,487.3]
[1720708343007,7.0978,140.89,140.84,7.0998]
[1720708343208,7.0978,140.89,140.85,0.40209034]
[1720708343414,34.2673,140.9,140.85,7.50159034]
[1720708343613,7.0977,140.89,140.85,7.0995]
[1720708343793,7.0977,140.89,140.84,7.1]
[1720708343988,7.0977,140.89,140.83,17.7517]
[1720708344216,7.099,140.87,140.82,30.2953]
[1720708345313,27.17,140.86,140.82,30.2954]
[1720708345624,27.17,140.86,140.82,48.0482]
[1720708345816,34.2693,140.86,140.82,40.9472]
[1720708346142,34.2693,140.86,140.82,16.6329]
[1720708346434,7.1012,140.83,140.78,22.7248]
[1720708346600,27.17,140.84,140.78,15.6221]
[1720708346803,27.17,140.84,140.8,17.7553]
[1720708346996,34.2693,140.86,140.81,7.1014]
[1720708347406,7.0998,140.85,140.82,0.87004198]
[1720708347723,7.0998,140.85,140.8,24.8574]
[1720708348128,7.0998,140.85,140.81,0.85605351]
[1720708348300,7.1004,140.84,140.8,17.7553]
[1720708348497,7.1004,140.84,140.8,25.72586498]
[1720708348832,7.0999,140.85,140.8,24.8575]
[1720708349211,7.1004,140.84,140.79,1.4202228]
[1720708349545,34.2704,140.84,140.79,8.5229228]
[1720708350026,34.2704,140.84,140.8,1.42012195]
[1720708350203,34.2704,140.84,140.8,8.52232195]
[1720708350410,27.17,140.84,140.8,8.52232195]
[1720708350619,7.0997,140.85,140.81,17.7542]
[1720708350841,7.1003,140.84,140.8,1.42012195]
[1720708351719,7.0999,140.85,140.8,8.52222195]
[1720708352028,7.0997,140.85,140.8,26.27752195]
[1720708352228,7.1002,140.84,140.8,26.27752195]
[1720708352605,7.0998,140.85,140.8,26.27752195]
[1720708352802,27.17,140.86,140.8,19.17542195]
[1720708353014,27.17,140.88,140.81,7.1012]
[1720708353324,52.0991,140.87,140.82,8.52112025]
[1720708353734,34.2684,140.88,140.83,7.1007]
[1720708353918,34.2684,140.88,140.84,1.41992803]
[1720708354321,7.099,140.87,140.82,7.1011]
[1720708354503,27.17,140.86,140.82,7.1011]
[1720708355026,34.2692,140.86,140.82,7.1011]
[1720708355323,34.2692,140.86,140.81,24.8556]
[1720708355621,7.0997,140.85,140.81,17.7541]
[1720708356031,27.17,140.86,140.79,7.1025]
[1720708356032,7.1003,140.84,140.79,7.1025]
[1720708356202,27.17,140.84,140.78,33.3793]
[1720708356410,7.1008,140.83,140.78,33.3793]
[1720708356606,27.17,140.84,140.78,33.3793]
[1720708356927,7.1008,140.83,140.79,1.4202475]
[1720708357108,34.2704,140.84,140.79,8.5229475]
[1720708357614,27.17,140.84,140.8,7.1021]
[1720708357814,27.12181337,140.9,140.81,8.52194855]
[1720708357815,34.2694,140.86,140.81,8.52194855]
[1720708358200,7.0998,140.85,140.81,1.42024855]
[1720708358801,7.1007,140.83,140.78,22.7252]
[1720708359010,7.1009,140.83,140.78,23.09395049]
[1720708359526,7.1013,140.82,140.78,23.09395049]
[1720708359900,44.9207,140.84,140.77,0.36878633]
[1720708360109,7.1019,140.81,140.77,0.36878633]
[1720708360319,7.1019,140.81,140.77,0.71277792]
[1720708360518,7.1017,140.81,140.76,17.7605]
[1720708360726,27.17,140.82,140.78,7.103]
[1720708361096,27.17,140.82,140.78,24.861]
[1720708361517,34.2712,140.82,140.79,1.09636883]
[1720708361703,27.17,140.82,140.79,1.09636883]
[1720708362117,7.1003,140.84,140.79,8.19906883]
[1720708362311,7.1008,140.83,140.79,1.09636883]
[1720708362506,7.1013,140.82,140.78,17.758]
[1720708363033,7.1003,140.84,140.78,17.758]
[1720708363212,34.27,140.85,140.8,7.1021]
[1720708363411,7.0993,140.86,140.81,7.1017]
[1720708363618,27.17,140.87,140.8,17.7554]
[1720708363920,7.0997,140.85,140.8,24.8573]
[1720708364304,27.17,140.87,140.8,24.8573]
[1720708364305,7.1002,140.84,140.8,17.7554]
[1720708364933,7.0994,140.86,140.81,7.1016]
[1720708365302,34.2688,140.87,140.83,7.1007]
[1720708365505,3.46429007,140.92,140.84,7.0998]
[1720708365706,7.0967,140.92,140.87,17.7466]
[1720708366007,7.0969,140.91,140.86,7.0987]
[1720708366237,7.0969,140.91,140.87,30.0]
[1720708366736,27.17,140.94,140.87,30.0]
[1720708366737,7.0963,140.92,140.87,30.0]
[1720708366938,7.0967,140.91,140.87,31.41948944]
[1720708367419,27.17,140.94,140.87,30.0]
[1720708367621,7.0975,140.9,140.87,30.0]
[1720708367807,34.2666,140.92,140.88,1.41964319]
[1720708368007,34.2666,140.92,140.88,30.0]
[1720708368233,27.17,140.92,140.88,30.0]
[1720708368432,7.0974,140.9,140.88,30.0]
[1720708368932,34.2674,140.9,140.88,30.0]
[1720708369130,27.17,140.9,140.88,30.0]
[1720708369511,27.17,140.9,140.87,30.0]
[1720708369829,34.2673,140.9,140.87,30.0]
[1720708370332,17.7371,140.95,140.87,30.0]
[1720708370333,34.2682,140.88,140.87,30.0]
[1720708370532,79.2682,140.88,140.87,11.85537832]
[1720708370710,7.099,140.87,140.82,7.1012]
[1720708370906,7.099,140.87,140.83,30.0]
[1720708371737,7.0993,140.86,140.81,40.1976]
[1720708372112,7.0993,140.86,140.82,1.41768669]
[1720708372313,34.2685,140.88,140.83,7.1004]
[1720708372512,34.2685,140.88,140.82,1.41768669]
[1720708372513,7.0987,140.87,140.82,7.101]
[1720708374030,34.2683,140.88,140.83,7.1007]
[1720708374416,7.0988,140.87,140.82,7.1011]
[1720708375111,34.2682,140.88,140.83,7.1005]
[1720708375832,34.2682,140.88,140.84,7.1002]
[1720708376218,34.2676,140.9,140.83,17.7517]
[1720708376420,27.17,140.9,140.84,7.1001]
[1720708376726,7.0983,140.88,140.83,17.7517]
[1720708376913,7.0984,140.88,140.83,24.852]
[1720708377115,7.0979,140.89,140.84,7.1002]
[1720708377427,7.0983,140.88,140.83,24.8522]
[1720708377625,7.0978,140.89,140.84,7.1]
[1720708378132,27.17,140.9,140.86,7.0991]
[1720708378336,27.17,140.9,140.85,17.749]
[1720708378633,34.2673,140.9,140.85,24.8487]
[1720708378836,3.4794557,140.91,140.86,7.0989]
[1720708378837,7.0971,140.91,140.86,7.0989]
[1720708380046,7.0972,140.9,140.86,7.93898745]
[1720708380727,7.0972,140.9,140.86,0.84008745]
[1720708381046,48.29106209,140.93,140.85,17.749]
[1720708381047,27.17,140.91,140.85,17.749]
[1720708381341,27.17,140.91,140.81,15.3421]
[1720708381342,7.0983,140.88,140.82,18.59760131]
[1720708381539,7.0983,140.88,140.83,0.84544129]
[1720708381737,34.2678,140.89,140.84,7.1001]
[1720708381918,34.2678,140.89,140.85,0.84532124]
[1720708382113,7.0989,140.87,140.82,24.8532]
[1720708382416,7.0993,140.86,140.81,22.4436]
[1720708382623,7.1003,140.84,140.81,15.3421]
[1720708382925,27.17,140.87,140.81,15.3421]
[1720708383145,7.0998,140.85,140.8,7.1021]
[1720708383762,7.0998,140.85,140.81,7.1017]
[1720708384039,7.0998,140.85,140.79,24.1702]
[1720708384342,27.17,140.85,140.79,31.2728]
[1720708384524,27.17,140.83,140.77,15.8025]
[1720708384722,7.1018,140.81,140.77,15.8025]
[1720708384928,7.1018,140.81,140.76,24.8636]
[1720708385133,34.2718,140.81,140.76,24.8636]
[1720708385639,34.2718,140.81,140.75,13.7535]
[1720708385640,7.1023,140.8,140.75,13.7535]
[1720708385849,27.17,140.81,140.74,15.5262]
[1720708386213,27.17,140.79,140.72,6.6488]
[1720708386539,7.1038,140.77,140.72,7.1062]
[1720708386743,27.17,140.79,140.73,7.1057]
[1720708386959,27.17,140.79,140.72,17.7651]
[1720708387125,6.1926,140.81,140.72,17.7651]
[1720708387312,27.17,140.77,140.72,17.7651]
[1720708387639,27.17,140.77,140.72,24.871]
[1720708387847,7.1023,140.8,140.75,7.1043]
[1720708388052,34.2723,140.8,140.74,24.8676]
[1720708388354,7.1028,140.79,140.74,24.8676]
[1720708388646,34.2724,140.8,140.74,24.8676]
[1720708389228,34.2724,140.8,140.75,7.1047]
[1720708389229,27.17,140.8,140.75,7.1047]
[1720708389425,7.1013,140.82,140.77,7.1036]
[1720708389625,7.1021,140.81,140.76,24.8641]
[1720708390328,27.17,140.82,140.71,100.0]
[1720708390329,7.1023,140.8,140.75,7.1046]
[1720708390541,27.17,140.8,140.73,17.7637]
[1720708390749,3.31411077,140.82,140.7,40.9479]
[1720708390750,27.17,140.78,140.7,40.9479]
[1720708390942,27.17,140.76,140.72,7.1062]
[1720708391944,34.2743,140.76,140.71,7.1066]
[1720708392150,7.1048,140.75,140.7,40.9481]
[1720708392329,27.17,140.76,140.7,17.7675]
[1720708392638,27.17,140.74,140.7,24.8747]
[1720708392851,27.17,140.74,140.7,17.7675]
[1720708393051,27.17,140.74,140.7,24.8744]
[1720708393225,27.17,140.74,140.71,7.1068]
[1720708393634,27.17,140.74,140.7,17.7675]
[1720708393923,34.2753,140.74,140.7,17.7675]
[1720708394343,27.17,140.74,140.71,1.4169579]
[1720708395347,27.17,140.74,140.71,8.5233579]
[1720708395552,7.1048,140.75,140.71,1.4169579]
[1720708396053,34.2743,140.76,140.71,8.5236579]
[1720708397044,27.17,140.76,140.71,8.5235579]
[1720708397347,34.2734,140.78,140.72,17.7653]
[1720708397553,7.1039,140.77,140.73,1.41675652]
[1720708397729,7.1044,140.76,140.72,17.7653]
[1720708398058,7.1049,140.75,140.7,7.1072]
[1720708398253,7.1058,140.73,140.69,17.7685]
[1720708398550,27.17,140.77,140.71,17.7663]
[1720708398853,27.17,140.77,140.74,22.6172]
[1720708399025,39.4238,140.91,140.81,17.7532]
[1720708399356,7.0993,140.86,140.82,1.41995665]
[1720708399740,27.17,140.88,140.82,1.42001838]
[1720708399934,27.17,140.86,140.82,1.42001838]
[1720708400257,27.17,140.86,140.8,7.1022]
[1720708400258,7.0998,140.85,140.8,7.1022]
[1720708400953,7.0994,140.86,140.81,7.1017]
[1720708401142,7.0997,140.85,140.8,7.1021]
[1720708402748,17.7474,140.87,140.78,17.7572]
[1720708402949,17.7474,140.87,140.72,413.3614]
[1720708402950,0.17,140.86,140.74,22.6172]
[1720708403253,7.1019,140.81,140.75,7.1044]
[1720708403548,7.1023,140.8,140.75,7.1044]
[1720708404133,7.1028,140.79,140.74,47.485]
[1720708405124,7.1036,140.78,140.74,22.6172]
[1720708405323,17.7519,140.83,140.74,22.6172]
[1720708405524,7.1022,140.81,140.76,7.104]
[1720708405737,17.7519,140.83,140.77,0.51322383]
[1720708405946,7.1022,140.8,140.75,25.39773433]
[1720708406271,7.1019,140.81,140.76,7.1042]
[1720708406445,22.6496,140.84,140.77,7.63555878]
[1720708406446,7.1012,140.82,140.77,7.63555878]
[1720708406653,7.1018,140.81,140.77,0.53205878]
[1720708406828,22.6496,140.84,140.75,24.866]
[1720708406829,7.1027,140.8,140.75,24.866]
[1720708407345,7.1013,140.82,140.77,7.1034]
[1720708407851,7.1018,140.81,140.76,7.1041]
[1720708408065,3.30958856,140.84,140.77,17.7592]
[1720708408354,7.1009,140.83,140.78,7.1032]
[1720708408746,7.1038,140.77,140.73,17.7638]
[1720708409054,7.1038,140.77,140.71,15.748]
[1720708409259,7.1049,140.75,140.71,15.748]
[1720708409553,7.1043,140.76,140.71,22.8546]
[1720708410256,17.7572,140.79,140.69,24.8768]
[1720708410257,7.1055,140.74,140.69,24.8768]
[1720708410459,7.1055,140.74,140.7,7.1073]
[1720708410631,7.1049,140.75,140.7,7.1073]
[1720708411355,7.1053,140.74,140.69,412.1769]
[1720708411536,7.1053,140.74,140.7,7.1072]
[1720708411732,7.1047,140.76,140.71,7.1068]
[1720708411938,7.1047,140.76,140.72,1.42103823]
[1720708412337,7.1052,140.75,140.7,7.1072]
[1720708412548,7.1044,140.76,140.71,7.1067]
[1720708413344,7.1048,140.75,140.7,24.8753]
[1720708413645,21.12850706,140.79,140.7,17.7682]
[1720708413861,7.1046,140.76,140.71,7.1066]
[1720708414244,7.1039,140.77,140.72,7.1061]
[1720708414757,7.1034,140.78,140.73,7.1056]
[1720708415071,7.1028,140.79,140.74,24.868]
[1720708415361,7.1024,140.8,140.75,8.52516897]
[1720708415742,7.1019,140.81,140.76,7.1042]
[1720708416350,7.1019,140.81,140.75,7.1046]
[1720708416752,52.6467,140.84,140.74,46.884]
[1720708416956,0.17,140.83,140.71,23.7767]
[1720708417265,17.7547,140.81,140.71,40.2442]
[1720708417468,45.0,140.8,140.73,7.1054]